[Event "ESP-chT 2nd Division 2019"]
[Site "Linares"]
[Date "2019.08.20"]
[Round "2.23"]
[White "Represa Perez, Mireya"]
[Black "Garcia Salamero, Gabriel"]
[Result "0-1"]
[ECO "B43"]
[WhiteElo "2229"]
[BlackElo "2168"]
[Annotator "ChessBase"]
[PlyCount "110"]
[EventDate "2019.08.19"]
[EventType "team-tourn"]
[EventCountry "ESP"]
[SourceTitle "playchess.com"]
[Source "ChessBase"]
[SourceQuality "1"]
[TimeControl "5400+30"]

1. e4 {[%emt 0:00:00]} c5 {[%emt 0:00:00]} 2. Nf3 {[%emt 0:00:00]} e6 {[%emt 0:00:00]} 3. d4 {[%emt 0:00:00]} cxd4 {[%emt 0:00:00]} 4. Nxd4 {[%emt 0:00:00]} a6 {[%emt 0:00:00]} 5. Nc3 {[%emt 0:00:01]} Qc7 {[%emt 0:00:00]} 6. g3 {[%emt 0:00:33]} Nf6 {[%emt 0:00:31]} 7. Bg2 {[%emt 0:00:26]} Be7 {[%emt 0:00:29]} 8. O-O {[%emt 0:00:23]} Nc6 {[%emt 0:00:24]} 9. Re1 {[%emt 0:01:05]} d6 {[%emt 0:02:43]} 10. Nxc6 {[%emt 0:01:01]} bxc6 {[%emt 0:00:03]} 11. e5 {[%emt 0:00:32]} dxe5 {[%emt 0:03:34]} 12. Rxe5 {[%emt 0:02:13]} O-O {[%emt 0:01:48]} 13. Re1 {[%emt 0:02:37]} Rd8 {[%emt 0:01:22]} 14. Qf3 {[%emt 0:03:29]} Bb7 {[%emt 0:00:02]} 15. Bf4 {[%emt 0:03:53]} Bd6 {[%emt 0:05:55]} 16. Bxd6 {[%emt 0:03:36]} Rxd6 {[%emt 0:01:52]} 17. Na4 {[%emt 0:03:15]} Rad8 {[%emt 0:14:14]} 18. b3 {[%emt 0:10:51]} Qa5 {[%emt 0:08:36]} 19. c4 {[%emt 0:05:14]} e5 {[%emt 0:19:20]} 20. Qe3 {[%emt 0:06:49]} Re8 {[%emt 0:06:51]} 21. Rad1 {[%emt 0:07:49]} Qd8 {[%emt 0:04:50]} 22. Rxd6 {[%emt 0:03:30]} Qxd6 {[%emt 0:00:02]} 23. Bf3 {[%emt 0:03:55]} Bc8 {[%emt 0:05:08]} 24. Qc5 {[%emt 0:03:19]} Qd3 {[%emt 0:08:43]} 25. Bxc6 {[%emt 0:02:54]} Bd7 {[%emt 0:00:01]} 26. Bxd7 {[%emt 0:01:19]} Nxd7 {[%emt 0:00:01]} 27. Qc6 {[%emt 0:05:47]} Nf6 {[%emt 0:01:34]} 28. Nc5 {[%emt 0:03:34]} Qd2 {[%emt 0:01:14]} 29. Re3 {[%emt 0:01:43]} h6 {[%emt 0:00:57]} 30. Ne4 {[%emt 0:01:01]} Qd1+ {[%emt 0:00:19]} 31. Kg2 {[%emt 0:00:07]} Re6 {[%emt 0:00:16]} 32. Nxf6+ {[%emt 0:01:07]} gxf6 {[%emt 0:00:01]} 33. Qf3 {[%emt 0:01:17]} Qb1 {[%emt 0:02:03]} 34. Re4 {[%emt 0:03:53]} Rd6 {[%emt 0:02:20]} 35. Rg4+ {[%emt 0:00:18]} Kf8 {[%emt 0:00:40]} 36. Qa8+ {[%emt 0:01:21]} Ke7 {[%emt 0:00:05]} 37. Rg8 {[%emt 0:00:55]} f5 {[%emt 0:02:05]} 38. Qf8+ {[%emt 0:01:04]} Ke6 {[%emt 0:00:04]} 39. Qxh6+ {[%emt 0:00:11]} Ke7 {[%emt 0:00:24]} 40. Qg5+ {[%emt 0:02:47]} Rf6 {[%emt 0:00:01]} 41. Qe3 {[%emt 0:00:44]} Re6 {[%emt 0:01:01]} 42. Ra8 {[%emt 0:02:37]} f4 {[%emt 0:00:01]} 43. Ra7+ {[%emt 0:04:34]} Kf8 {[%emt 0:00:24]} 44. Qf3 {[%emt 0:02:16]} Qf5 {[%emt 0:01:58]} 45. c5 {[%emt 0:03:19]} Rh6 {[%emt 0:03:00]} 46. h4 {[%emt 0:01:24]} Rg6 {[%emt 0:03:36]} 47. Qd5 {[%emt 0:00:59]} fxg3 {[%emt 0:00:58]} 48. fxg3 Rf6 {[%emt 0:00:18]} 49. Qd2 {[%emt 0:03:19]} Qf1+ {[%emt 0:00:07]} 50. Kh2 {[%emt 0:00:35]} Rf2+ {[%emt 0:00:01]} 51. Qxf2 {[%emt 0:00:06]} Qxf2+ {[%emt 0:00:02]} 52. Kh3 {[%emt 0:00:07]} e4 {[%emt 0:00:15]} 53. Ra8+ {[%emt 0:01:19]} Ke7 {[%emt 0:00:04]} 54. c6 {[%emt 0:00:43]} Kd6 {[%emt 0:00:13]} 55. Re8 {[%emt 0:00:37]} e3 0-1

[Event "ESP-chT 2nd Division 2019"]
[Site "Linares"]
[Date "2019.08.20"]
[Round "2.24"]
[White "Collado Barbas, Laura"]
[Black "Meneses Gonzalez, Kevin Moises"]
[Result "0-1"]
[ECO "A41"]
[WhiteElo "2070"]
[BlackElo "2251"]
[Annotator "ChessBase"]
[PlyCount "74"]
[EventDate "2019.08.19"]
[EventType "team-tourn"]
[EventCountry "ESP"]
[SourceTitle "playchess.com"]
[Source "ChessBase"]
[SourceQuality "1"]
[TimeControl "5400+30"]

1. d4 {[%emt 0:00:00]} d6 {[%emt 0:00:00]} 2. Nf3 {[%emt 0:00:12]} g6 {[%emt 0:00:00]} 3. c4 {[%emt 0:00:14]} Bg7 {[%emt 0:00:00]} 4. Nc3 {[%emt 0:00:16]} Nd7 {[%emt 0:00:00]} 5. e4 {[%emt 0:00:50]} e5 {[%emt 0:00:00]} 6. d5 {[%emt 0:04:58]} Ne7 {[%emt 0:00:17]} 7. Be2 {[%emt 0:03:23]} h6 {[%emt 0:01:25]} 8. g4 {[%emt 0:10:40]} O-O {[%emt 0:09:26]} 9. g5 {[%emt 0:21:05]} h5 {[%emt 0:01:30]} 10. b4 {[%emt 0:03:29]} a5 {[%emt 0:01:03]} 11. bxa5 {[%emt 0:01:17]} Nc5 {[%emt 0:00:32]} 12. Ba3 {[%emt 0:06:37]} Rxa5 {[%emt 0:01:12]} 13. Bb4 {[%emt 0:00:09]} Ra8 {[%emt 0:00:04]} 14. a4 {[%emt 0:00:21]} Bg4 {[%emt 0:08:29]} 15. h3 {[%emt 0:19:56]} Bd7 {[%emt 0:00:49]} 16. a5 {[%emt 0:07:44]} Nc8 {[%emt 0:07:37]} 17. Bxc5 {[%emt 0:10:07]} dxc5 {[%emt 0:00:05]} 18. Nb5 {[%emt 0:03:25]} c6 {[%emt 0:03:33]} 19. dxc6 {[%emt 0:02:21]} bxc6 {[%emt 0:00:04]} 20. Nc3 {[%emt 0:00:50]} Rxa5 {[%emt 0:04:27]} 21. Rxa5 {[%emt 0:00:33]} Qxa5 {[%emt 0:00:04]} 22. Qxd7 {[%emt 0:00:22]} Rd8 {[%emt 0:06:25]} 23. Qxc6 {[%emt 0:00:46]} Qxc3+ {[%emt 0:07:38]} 24. Kf1 {[%emt 0:00:07]} Qb2 {[%emt 0:01:55]} 25. Qxc5 {[%emt 0:01:16]} Qb1+ {[%emt 0:01:50]} 26. Kg2 {[%emt 0:00:26]} Qxe4 {[%emt 0:00:05]} 27. Qc7 {[%emt 0:00:15]} Rf8 {[%emt 0:03:29]} 28. Re1 {[%emt 0:00:43]} Qf5 {[%emt 0:00:02]} 29. h4 {[%emt 0:01:29]} Qg4+ {[%emt 0:01:40]} 30. Kh2 {[%emt 0:00:24]} e4 {[%emt 0:00:23]} 31. Ng1 {[%emt 0:00:36]} Qf5 {[%emt 0:00:18]} 32. Kg2 {[%emt 0:00:24]} Be5 {[%emt 0:02:49]} 33. Qa5 {[%emt 0:00:28]} Qf4 {[%emt 0:00:14]} 34. Bd1 {[%emt 0:00:22]} Nd6 {[%emt 0:00:17]} 35. Bb3 {[%emt 0:00:47]} Nf5 {[%emt 0:00:13]} 36. Qd5 {[%emt 0:00:35]} e3 {[%emt 0:00:58]} 37. Nf3 {[%emt 0:00:25]} Nxh4+ {[%emt 0:00:43]} 0-1

[Event "ESP-chT 2nd Division 2019"]
[Site "Linares"]
[Date "2019.08.20"]
[Round "2.25"]
[White "Ballester Sanz, Joaquin"]
[Black "Lopez Paniego, Noel"]
[Result "1/2-1/2"]
[ECO "C64"]
[WhiteElo "2027"]
[BlackElo "2059"]
[Annotator "NA"]
[PlyCount "59"]
[EventDate "2019.08.19"]
[EventType "team-tourn"]
[EventCountry "ESP"]
[SourceTitle "playchess.com"]
[Source "ChessBase"]
[SourceQuality "1"]
[TimeControl "5400+30"]

1. e4 {[%emt 0:00:00]} e5 {[%emt 0:00:00]} 2. Nf3 {[%emt 0:00:00]} Nc6 {[%emt 0:00:00]} 3. Bb5 {[%emt 0:00:00]} Bc5 {[%emt 0:00:15]} 4. c3 {[%emt 0:00:32]} Nge7 {[%emt 0:00:31]} 5. d4 {[%emt 0:01:15]} exd4 {[%emt 0:00:23]} 6. cxd4 {[%emt 0:00:18]} Bb4+ {[%emt 0:00:06]} 7. Nc3 {[%emt 0:05:44]} d5 {[%emt 0:01:19]} 8. e5 {[%emt 0:00:51]} O-O {[%emt 0:20:05]} 9. O-O {[%emt 0:12:00]} Bg4 {[%emt 0:05:36]} 10. Be2 {[%emt 0:03:02]} Ba5 {[%emt 0:08:32]} 11. Ne1 {[%emt 0:05:26]} Bxe2 {[%emt 0:01:07]} 12. Nxe2 {[%emt 0:00:25]} Bb6 {[%emt 0:00:17]} 13. Nf3 {[%emt 0:05:52]} Nf5 {[%emt 0:05:40]} 14. Qd3 {[%emt 0:03:12]} Qd7 {[%emt 0:00:11]} 15. Bd2 {[%emt 0:06:21]} a5 {[%emt 0:05:23]} 16. Bc3 {[%emt 0:05:31]} f6 {[%emt 0:08:51]} 17. exf6 {[%emt 0:05:21]} Rxf6 {[%emt 0:00:04]} 18. Ng3 {[%emt 0:02:48]} Re8 {[%emt 0:14:07]} 19. Nxf5 {[%emt 0:05:12]} Qxf5 {[%emt 0:00:43]} 20. Qxf5 {[%emt 0:01:44]} Rxf5 {[%emt 0:00:03]} 21. Rfe1 {[%emt 0:00:46]} Re4 {[%emt 0:01:38]} 22. Rxe4 {[%emt 0:16:11]} dxe4 {[%emt 0:00:03]} 23. Nd2 {[%emt 0:00:49]} Nxd4 {[%emt 0:07:08]} 24. Nxe4 {[%emt 0:00:26]} Rf4 {[%emt 0:02:05]} 25. Re1 {[%emt 0:01:57]} Nc2 {[%emt 0:02:51]} 26. Re2 {[%emt 0:00:32]} Nd4 {[%emt 0:01:10]} 27. Re1 {[%emt 0:00:11]} Nc2 {[%emt 0:08:13]} 28. Re2 {[%emt 0:00:08]} Nd4 {[%emt 0:00:36]} 29. Re1 {[%emt 0:00:09]} Nc2 {[%emt 0:00:32]} 30. Re2 1/2-1/2

[Event "ESP-chT 2nd Division 2019"]
[Site "Linares"]
[Date "2019.08.20"]
[Round "2.26"]
[White "Cruz Lledo, Pablo"]
[Black "Melero Fidalgo, Juan De Dios"]
[Result "1-0"]
[ECO "E41"]
[WhiteElo "2445"]
[BlackElo "2295"]
[Annotator "ChessBase"]
[PlyCount "75"]
[EventDate "2019.08.19"]
[EventType "team-tourn"]
[EventCountry "ESP"]
[SourceTitle "playchess.com"]
[Source "ChessBase"]
[SourceQuality "1"]
[TimeControl "5400+30"]

1. d4 {[%emt 0:02:14]} Nf6 {[%emt 0:01:47]} 2. c4 {[%emt 0:00:09]} e6 {[%emt 0:00:05]} 3. Nc3 {[%emt 0:00:06]} Bb4 {[%emt 0:00:06]} 4. Nf3 {[%emt 0:00:12]} Bxc3+ {[%emt 0:04:12]} 5. bxc3 {[%emt 0:00:11]} d6 {[%emt 0:00:05]} 6. e3 {[%emt 0:00:51]} c5 {[%emt 0:01:45]} 7. Bd3 {[%emt 0:00:30]} Nc6 {[%emt 0:00:15]} 8. O-O {[%emt 0:00:08]} O-O {[%emt 0:02:19]} 9. Nd2 {[%emt 0:02:49]} Re8 {[%emt 0:03:48]} 10. Nb3 {[%emt 0:02:19]} b6 {[%emt 0:02:59]} 11. f4 {[%emt 0:00:42]} Ba6 {[%emt 0:05:31]} 12. Ba3 {[%emt 0:20:28]} d5 {[%emt 0:18:35]} 13. dxc5 {[%emt 0:11:58]} dxc4 {[%emt 0:00:59]} 14. Be2 {[%emt 0:00:05]} Qxd1 {[%emt 0:05:25]} 15. Rfxd1 {[%emt 0:01:50]} Nd5 {[%emt 0:00:27]} 16. Nd4 {[%emt 0:08:31]} Nxd4 {[%emt 0:04:57]} 17. cxd4 {[%emt 0:02:49]} Nxe3 {[%emt 0:01:29]} 18. Rdc1 {[%emt 0:00:03]} b5 {[%emt 0:02:48]} 19. Bf3 {[%emt 0:00:42]} Rab8 {[%emt 0:01:41]} 20. Rab1 {[%emt 0:01:44]} Red8 {[%emt 0:04:54]} 21. c6 {[%emt 0:00:26]} Rbc8 {[%emt 0:05:20]} 22. Be7 {[%emt 0:02:25]} Re8 {[%emt 0:03:39]} 23. Bc5 {[%emt 0:00:05]} Nd5 {[%emt 0:02:10]} 24. f5 {[%emt 0:00:16]} Rxc6 {[%emt 0:10:21]} 25. fxe6 {[%emt 0:00:24]} fxe6 {[%emt 0:00:17]} 26. Re1 {[%emt 0:00:28]} Rd8 {[%emt 0:04:10]} 27. Bxa7 {[%emt 0:00:27]} c3 {[%emt 0:05:51]} 28. Bc5 {[%emt 0:00:40]} b4 {[%emt 0:02:31]} 29. a3 {[%emt 0:13:54]} bxa3 {[%emt 0:02:23]} 30. Ra1 {[%emt 0:00:51]} c2 {[%emt 0:02:49]} 31. Rxa3 {[%emt 0:01:21]} Rb8 {[%emt 0:00:40]} 32. Be4 {[%emt 0:00:11]} Rb1 {[%emt 0:00:37]} 33. Rxb1 {[%emt 0:00:10]} cxb1=Q+ {[%emt 0:00:03]} 34. Bxb1 {[%emt 0:00:15]} Nf6 {[%emt 0:01:10]} 35. g4 {[%emt 0:00:45]} h6 {[%emt 0:00:26]} 36. h4 {[%emt 0:00:01]} Bc4 {[%emt 0:00:30]} 37. Ra8+ {[%emt 0:00:29]} Kf7 {[%emt 0:00:02]} 38. Rf8# 1-0

[Event "ESP-chT 2nd Division 2019"]
[Site "Linares"]
[Date "2019.08.20"]
[Round "2.27"]
[White "Hernandez Munoz, Antonio Ramon"]
[Black "Garcia Molla, Victor"]
[Result "0-1"]
[ECO "A40"]
[WhiteElo "2242"]
[BlackElo "2408"]
[Annotator "ChessBase"]
[PlyCount "62"]
[EventDate "2019.08.19"]
[EventType "team-tourn"]
[EventCountry "ESP"]
[SourceTitle "playchess.com"]
[Source "ChessBase"]
[SourceQuality "1"]
[TimeControl "5400+30"]

1. d4 {[%emt 0:00:00]} e6 {[%emt 0:00:00]} 2. Nf3 {[%emt 0:00:00]} d5 {[%emt 0:00:46]} 3. g3 {[%emt 0:00:00]} f5 {[%emt 0:00:47]} 4. Bg2 {[%emt 0:00:36]} Bd6 {[%emt 0:00:49]} 5. b3 {[%emt 0:00:58]} c6 {[%emt 0:01:17]} 6. O-O {[%emt 0:00:33]} Qe7 {[%emt 0:00:48]} 7. Bb2 {[%emt 0:02:46]} Nf6 {[%emt 0:01:30]} 8. c4 {[%emt 0:00:24]} O-O {[%emt 0:02:03]} 9. Ne5 {[%emt 0:04:03]} b6 {[%emt 0:10:01]} 10. Nc3 {[%emt 0:10:38]} Bb7 {[%emt 0:01:35]} 11. Nd3 {[%emt 0:17:12]} Nbd7 {[%emt 0:04:03]} 12. Qc1 {[%emt 0:08:31]} Rac8 {[%emt 0:04:09]} 13. a4 {[%emt 0:18:55]} a5 {[%emt 0:06:07]} 14. Ba3 {[%emt 0:02:56]} Bb4 {[%emt 0:00:29]} 15. Bb2 {[%emt 0:05:32]} Ba6 {[%emt 0:06:24]} 16. cxd5 {[%emt 0:07:10]} cxd5 {[%emt 0:02:28]} 17. Qd2 {[%emt 0:00:33]} Ne4 {[%emt 0:01:27]} 18. Bxe4 {[%emt 0:00:06]} fxe4 {[%emt 0:06:03]} 19. Nf4 {[%emt 0:07:02]} g5 {[%emt 0:01:58]} 20. Nh3 {[%emt 0:04:25]} Bxc3 {[%emt 0:02:38]} 21. Bxc3 {[%emt 0:00:04]} Bxe2 {[%emt 0:00:17]} 22. Rfc1 {[%emt 0:01:15]} Bg4 {[%emt 0:04:45]} 23. Nxg5 {[%emt 0:04:26]} h6 {[%emt 0:01:34]} 24. f3 {[%emt 0:01:14]} exf3 {[%emt 0:01:35]} 25. h3 {[%emt 0:00:06]} f2+ {[%emt 0:01:49]} 26. Kg2 {[%emt 0:00:24]} Bh5 {[%emt 0:00:17]} 27. g4 {[%emt 0:00:59]} Bg6 {[%emt 0:00:15]} 28. Nf3 {[%emt 0:02:12]} Be4 {[%emt 0:00:08]} 29. Qxh6 {[%emt 0:00:27]} Rxf3 {[%emt 0:00:24]} 30. Bb4 {[%emt 0:00:45]} f1=Q+ {[%emt 0:02:38]} 31. Rxf1 {[%emt 0:00:09]} Rc2+ {[%emt 0:00:52]} 0-1

[Event "ESP-chT 2nd Division 2019"]
[Site "Linares"]
[Date "2019.08.20"]
[Round "2.28"]
[White "Plaza Pardo, Daniel"]
[Black "Gallardo Fernandez, Cesar"]
[Result "0-1"]
[ECO "A15"]
[WhiteElo "2238"]
[BlackElo "2170"]
[Annotator "ChessBase"]
[PlyCount "126"]
[EventDate "2019.08.19"]
[EventType "team-tourn"]
[EventCountry "ESP"]
[SourceTitle "playchess.com"]
[Source "ChessBase"]
[SourceQuality "1"]
[TimeControl "5400+30"]

1. c4 {[%emt 0:00:00]} Nf6 {[%emt 0:04:52]} 2. g3 {[%emt 0:00:17]} e5 {[%emt 0:00:21]} 3. Bg2 {[%emt 0:01:24]} c6 {[%emt 0:00:54]} 4. Nf3 {[%emt 0:00:18]} d6 {[%emt 0:00:10]} 5. Nc3 {[%emt 0:00:13]} Be7 {[%emt 0:01:12]} 6. O-O {[%emt 0:00:31]} O-O {[%emt 0:00:29]} 7. e4 {[%emt 0:00:24]} Nbd7 {[%emt 0:00:29]} 8. d4 {[%emt 0:01:58]} Qc7 {[%emt 0:02:38]} 9. h3 {[%emt 0:02:53]} Re8 {[%emt 0:03:38]} 10. Be3 {[%emt 0:02:09]} b6 {[%emt 0:06:57]} 11. Qc2 {[%emt 0:17:31]} Ba6 {[%emt 0:10:57]} 12. b3 {[%emt 0:06:29]} b5 {[%emt 0:09:55]} 13. cxb5 {[%emt 0:07:24]} cxb5 {[%emt 0:00:07]} 14. Rfc1 {[%emt 0:01:39]} Rac8 {[%emt 0:01:23]} 15. Qb2 {[%emt 0:03:03]} Qb8 {[%emt 0:05:28]} 16. Nd5 {[%emt 0:05:50]} Nxd5 {[%emt 0:09:02]} 17. exd5 {[%emt 0:02:15]} e4 {[%emt 0:08:23]} 18. Rxc8 {[%emt 0:09:57]} Bxc8 {[%emt 0:00:31]} 19. Ng5 {[%emt 0:02:22]} Nf6 {[%emt 0:05:21]} 20. Nxe4 {[%emt 0:03:11]} Nxe4 {[%emt 0:01:35]} 21. Bxe4 {[%emt 0:00:21]} Bxh3 {[%emt 0:00:10]} 22. Bf3 {[%emt 0:02:41]} Bf5 {[%emt 0:01:34]} 23. Rc1 {[%emt 0:01:59]} b4 {[%emt 0:03:28]} 24. Rc6 {[%emt 0:05:05]} h6 {[%emt 0:01:34]} 25. Qc1 {[%emt 0:01:46]} Bd7 {[%emt 0:03:07]} 26. Rc4 {[%emt 0:03:08]} a5 {[%emt 0:02:48]} 27. Kg2 {[%emt 0:02:09]} Bf6 {[%emt 0:05:39]} 28. Rc7 {[%emt 0:07:38]} Re7 {[%emt 0:05:12]} 29. Kh2 {[%emt 0:01:16]} Qb6 {[%emt 0:00:51]} 30. Rc4 {[%emt 0:02:14]} Bb5 {[%emt 0:01:01]} 31. Rc8+ {[%emt 0:00:09]} Kh7 {[%emt 0:01:31]} 32. Qc2+ {[%emt 0:02:38]} g6 {[%emt 0:00:46]} 33. Qd2 {[%emt 0:00:16]} Bg7 {[%emt 0:01:11]} 34. Kg2 {[%emt 0:01:47]} Rc7 {[%emt 0:00:30]} 35. Rxc7 {[%emt 0:01:25]} Qxc7 {[%emt 0:00:06]} 36. Be4 {[%emt 0:00:41]} f5 {[%emt 0:00:26]} 37. Bf3 {[%emt 0:00:50]} Qc3 {[%emt 0:00:47]} 38. Qxc3 {[%emt 0:02:24]} bxc3 {[%emt 0:00:03]} 39. g4 {[%emt 0:00:20]} Bd3 {[%emt 0:01:39]} 40. gxf5 {[%emt 0:00:22]} Bxf5 {[%emt 0:00:06]} 41. Kf1 {[%emt 0:00:40]} c2 {[%emt 0:00:17]} 42. Ke1 {[%emt 0:00:25]} Bxd4 {[%emt 0:00:06]} 43. Bc1 {[%emt 0:00:17]} Kg7 {[%emt 0:01:02]} 44. Ke2 {[%emt 0:00:42]} Kf6 {[%emt 0:00:26]} 45. Bg2 {[%emt 0:00:49]} g5 {[%emt 0:00:17]} 46. Bf3 {[%emt 0:00:31]} Ke5 {[%emt 0:00:35]} 47. Bg2 {[%emt 0:00:21]} Be4 {[%emt 0:00:19]} 48. Bxe4 {[%emt 0:00:40]} Kxe4 {[%emt 0:00:03]} 49. f3+ {[%emt 0:00:13]} Kxd5 {[%emt 0:00:22]} 50. Kd3 {[%emt 0:00:04]} Be5 {[%emt 0:00:35]} 51. Kxc2 {[%emt 0:00:18]} Bf4 {[%emt 0:00:30]} 52. Bb2 {[%emt 0:00:31]} h5 {[%emt 0:00:41]} 53. Kd1 {[%emt 0:00:02]} h4 {[%emt 0:00:41]} 54. Ke2 {[%emt 0:00:01]} h3 {[%emt 0:00:10]} 55. Kf2 {[%emt 0:00:22]} Kc5 {[%emt 0:00:33]} 56. Bc3 {[%emt 0:00:28]} Kb5 {[%emt 0:01:18]} 57. a4+ {[%emt 0:00:28]} Ka6 {[%emt 0:00:58]} 58. Kg1 {[%emt 0:00:07]} Be3+ {[%emt 0:00:46]} 59. Kh2 {[%emt 0:00:13]} d5 {[%emt 0:00:06]} 60. b4 {[%emt 0:01:06]} d4 {[%emt 0:00:30]} 61. b5+ {[%emt 0:00:50]} Kb6 {[%emt 0:00:06]} 62. Bxd4+ {[%emt 0:01:13]} Bxd4 {[%emt 0:00:07]} 63. f4 {[%emt 0:00:13]} g4 {[%emt 0:00:28]} 0-1

[Event "ESP-chT 2nd Division 2019"]
[Site "Linares"]
[Date "2019.08.20"]
[Round "2.29"]
[White "Garcia Jimenez, Santiago"]
[Black "Barbera Estelles, Rosendo"]
[Result "0-1"]
[ECO "C58"]
[WhiteElo "2165"]
[BlackElo "2176"]
[Annotator "ChessBase"]
[PlyCount "142"]
[EventDate "2019.08.19"]
[EventType "team-tourn"]
[EventCountry "ESP"]
[SourceTitle "playchess.com"]
[Source "ChessBase"]
[SourceQuality "1"]
[TimeControl "5400+30"]

1. e4 {[%emt 0:00:00]} e5 {[%emt 0:00:12]} 2. Nf3 {[%emt 0:00:00]} Nc6 {[%emt 0:00:13]} 3. Bc4 {[%emt 0:00:00]} Nf6 {[%emt 0:00:26]} 4. Ng5 {[%emt 0:01:52]} d5 {[%emt 0:00:54]} 5. exd5 {[%emt 0:00:07]} Na5 {[%emt 0:00:06]} 6. Bb5+ {[%emt 0:00:06]} c6 {[%emt 0:00:09]} 7. dxc6 {[%emt 0:00:04]} bxc6 {[%emt 0:00:08]} 8. Bd3 {[%emt 0:00:07]} Nd5 {[%emt 0:03:16]} 9. Nf3 {[%emt 0:00:51]} Bd6 {[%emt 0:02:13]} 10. O-O {[%emt 0:02:24]} Nf4 {[%emt 0:02:38]} 11. Re1 {[%emt 0:00:56]} Qf6 {[%emt 0:16:05]} 12. Nc3 {[%emt 0:29:45]} Bc7 {[%emt 0:02:47]} 13. Bf1 {[%emt 0:07:06]} Bg4 {[%emt 0:08:08]} 14. Ne4 {[%emt 0:03:28]} Qg6 {[%emt 0:05:54]} 15. Ng3 {[%emt 0:01:12]} O-O {[%emt 0:14:51]} 16. h3 {[%emt 0:07:32]} Bxf3 {[%emt 0:01:49]} 17. Qxf3 {[%emt 0:00:07]} c5 {[%emt 0:15:18]} 18. d3 {[%emt 0:19:59]} Nc6 {[%emt 0:04:24]} 19. Nf5 {[%emt 0:06:31]} Qxf5 {[%emt 0:04:43]} 20. Qxc6 {[%emt 0:00:07]} Rac8 {[%emt 0:00:39]} 21. Qe4 {[%emt 0:00:53]} Qd7 {[%emt 0:00:53]} 22. Be2 {[%emt 0:02:56]} Ba5 {[%emt 0:03:25]} 23. Rd1 {[%emt 0:02:41]} Nxe2+ {[%emt 0:02:40]} 24. Qxe2 {[%emt 0:00:04]} Rfe8 {[%emt 0:00:28]} 25. Bd2 {[%emt 0:00:51]} Bxd2 {[%emt 0:01:46]} 26. Qxd2 {[%emt 0:00:23]} Re6 {[%emt 0:00:57]} 27. Qc3 {[%emt 0:02:41]} Rg6 {[%emt 0:02:39]} 28. Kh1 {[%emt 0:03:23]} Qf5 {[%emt 0:01:09]} 29. Qd2 {[%emt 0:01:17]} h6 {[%emt 0:01:27]} 30. Qe3 {[%emt 0:02:59]} Rcc6 {[%emt 0:01:15]} 31. Rf1 {[%emt 0:00:46]} Rcf6 {[%emt 0:01:44]} 32. Rae1 {[%emt 0:00:45]} Rg5 {[%emt 0:00:42]} 33. Qe4 {[%emt 0:02:17]} Qe6 {[%emt 0:00:38]} 34. Qc4 {[%emt 0:00:25]} Qc6 {[%emt 0:00:21]} 35. Qe4 {[%emt 0:00:07]} Qe6 {[%emt 0:00:15]} 36. Qa8+ {[%emt 0:01:11]} Kh7 {[%emt 0:00:05]} 37. Qe4+ {[%emt 0:00:04]} Rfg6 {[%emt 0:01:46]} 38. f4 {[%emt 0:01:42]} exf4 {[%emt 0:00:31]} 39. Qxe6 {[%emt 0:00:59]} fxe6 {[%emt 0:00:08]} 40. Rxf4 {[%emt 0:00:49]} Rxg2 {[%emt 0:00:14]} 41. Rg4 {[%emt 0:00:14]} R6xg4 {[%emt 0:00:35]} 42. hxg4 {[%emt 0:00:02]} Rxc2 {[%emt 0:00:11]} 43. Rxe6 {[%emt 0:00:13]} Rxb2 {[%emt 0:00:13]} 44. Ra6 {[%emt 0:00:20]} Rd2 {[%emt 0:01:04]} 45. Ra3 {[%emt 0:00:26]} Kg6 {[%emt 0:00:25]} 46. Kg1 {[%emt 0:00:12]} Kg5 {[%emt 0:00:17]} 47. Rxa7 {[%emt 0:00:18]} g6 {[%emt 0:00:13]} 48. Rc7 {[%emt 0:01:21]} Rxa2 {[%emt 0:01:14]} 49. Rxc5+ {[%emt 0:00:19]} Kxg4 {[%emt 0:00:09]} 50. Rc6 {[%emt 0:00:42]} Kh5 {[%emt 0:00:26]} 51. Rf6 {[%emt 0:01:13]} Kg5 {[%emt 0:00:44]} 52. Rd6 {[%emt 0:00:12]} h5 {[%emt 0:00:18]} 53. Rd5+ {[%emt 0:00:05]} Kg4 {[%emt 0:00:27]} 54. Rb5 {[%emt 0:00:59]} g5 {[%emt 0:00:22]} 55. d4 {[%emt 0:00:13]} h4 {[%emt 0:01:03]} 56. d5 {[%emt 0:00:11]} Rd2 {[%emt 0:00:18]} 57. Ra5 {[%emt 0:00:59]} Kf4 {[%emt 0:00:54]} 58. Rb5 {[%emt 0:00:51]} g4 {[%emt 0:00:59]} 59. Rb4+ {[%emt 0:00:29]} Kf5 {[%emt 0:00:37]} 60. Rb5 {[%emt 0:00:18]} g3 {[%emt 0:00:40]} 61. d6+ {[%emt 0:00:55]} Kg4 {[%emt 0:00:17]} 62. Rb4+ {[%emt 0:00:20]} Kh3 {[%emt 0:00:11]} 63. Rb1 {[%emt 0:00:12]} Rxd6 {[%emt 0:00:09]} 64. Ra1 {[%emt 0:00:05]} Rd4 {[%emt 0:00:25]} 65. Kh1 {[%emt 0:01:14]} Kg4 {[%emt 0:01:27]} 66. Rb1 {[%emt 0:00:03]} h3 {[%emt 0:00:20]} 67. Rg1 {[%emt 0:00:04]} Rd2 {[%emt 0:00:31]} 68. Ra1 {[%emt 0:00:14]} Kf3 {[%emt 0:00:23]} 69. Ra3+ {[%emt 0:00:38]} Kf2 {[%emt 0:00:17]} 70. Ra1 {[%emt 0:00:47]} Ke2 {[%emt 0:00:14]} 71. Rg1 {[%emt 0:00:57]} Rd1 {[%emt 0:00:20]} 0-1